[Event "NJSK 2018 Jeugd B"]
[Site "Assen, Netherlands"]
[Date "2018.05.02"]
[Round "4.5"]
[White "Honkoop, Gilian"]
[Black "Grutter, Tim"]
[Result "1-0"]
[TimeControl "40/90m+30m+30sec/move"]
[WhiteElo "1889"]
[BlackElo "1974"]

1. d4 {[%clk 01:30:59]} Nf6 {[%clk 01:30:56]} {[%emt 00:00:05]} 2. Bf4 {[%clk
01:31:27]} {[%emt 00:00:01]} d6 {[%clk 01:31:19]} {[%emt 00:00:08]} 3. Nc3
{[%clk 01:31:54]} {[%emt 00:00:03]} Nbd7 {[%clk 01:31:45]} {[%emt 00:00:04]} 4.
e4 {[%clk 01:32:14]} {[%emt 00:00:09]} e5 {[%clk 01:31:59]} {[%emt 00:00:16]} 5.
Bg3 {[%clk 01:32:03]} {[%emt 00:00:41]} exd4 {[%clk 01:31:55]} {[%emt
00:00:35]} 6. Qxd4 {[%clk 01:32:26]} {[%emt 00:00:06]} g6 {[%clk 01:29:34]}
{[%emt 00:02:52]} 7. O-O-O {[%clk 01:30:54]} {[%emt 00:02:02]} Bg7 {[%clk
01:29:39]} {[%emt 00:00:24]} 8. f4 {[%clk 01:28:12]} {[%emt 00:03:12]} O-O
{[%clk 01:26:29]} {[%emt 00:03:41]} 9. Nf3 {[%clk 01:23:54]} {[%emt 00:04:48]}
Nc5 {[%clk 01:16:08]} {[%emt 00:10:51]} 10. e5 {[%clk 01:11:11]} {[%emt
00:13:12]} Nfd7 {[%clk 01:09:29]} {[%emt 00:07:10]} 11. Bh4 {[%clk 00:57:44]}
{[%emt 00:13:57]} Qe8 {[%clk 01:01:30]} {[%emt 00:08:29]} 12. Nd5 {[%clk
00:57:41]} {[%emt 00:00:32]} Ne6 {[%clk 00:50:59]} {[%emt 00:11:02]} 13. Qd2
{[%clk 00:56:50]} {[%emt 00:01:20]} Ndc5 {[%clk 00:42:04]} {[%emt 00:09:26]} 14.
b4 {[%clk 00:30:23]} {[%emt 00:26:56]} Qa4 {[%clk 00:24:10]} {[%emt 00:18:24]}
15. bxc5 {[%clk 00:25:09]} {[%emt 00:05:44]} Qxa2 {[%clk 00:23:39]} {[%emt
00:01:01]} 16. Qc3 {[%clk 00:24:29]} {[%emt 00:01:09]} Nxc5 {[%clk 00:19:49]}
{[%emt 00:04:22]} 17. Bc4 {[%clk 00:22:54]} {[%emt 00:02:04]} Qa4 {[%clk
00:20:10]} {[%emt 00:00:10]} 18. Rhe1 {[%clk 00:19:41]} {[%emt 00:03:42]} b5
{[%clk 00:18:22]} {[%emt 00:02:18]} 19. Bb3 {[%clk 00:19:09]} {[%emt 00:01:02]}
Qa3+ {[%clk 00:18:46]} {[%emt 00:00:06]} 20. Qb2 {[%clk 00:19:24]} {[%emt
00:00:16]} Qa5 {[%clk 00:19:01]} {[%emt 00:00:14]} 21. Bf6 {[%clk 00:19:23]}
{[%emt 00:00:31]} Ne6 {[%clk 00:17:18]} {[%emt 00:02:13]} 22. exd6 {[%clk
00:19:07]} {[%emt 00:00:46]} cxd6 {[%clk 00:17:26]} {[%emt 00:00:23]} 23. Rxe6
{[%clk 00:19:01]} {[%emt 00:00:35]} fxe6 {[%clk 00:17:15]} {[%emt 00:00:41]} 24.
Bxg7 {[%clk 00:18:51]} {[%emt 00:00:40]} Rf7 {[%clk 00:17:32]} {[%emt
00:00:13]} 25. Bf6 {[%clk 00:18:06]} {[%emt 00:01:15]} Bd7 {[%clk 00:16:59]}
{[%emt 00:01:03]} 26. Ng5 {[%clk 00:18:11]} {[%emt 00:00:25]} exd5 {[%clk
00:17:14]} {[%emt 00:00:15]} 27. Bxd5 {[%clk 00:18:21]} {[%emt 00:00:20]} Raf8
{[%clk 00:17:38]} {[%emt 00:00:07]} 28. Bh8 {[%emt 00:01:16]} 1-0

[Event "NJSK 2018 Jeugd B"]
[Site "Assen, Netherlands"]
[Date "2018.05.02"]
[Round "4.6"]
[White "Noordenbos, Daan"]
[Black "Emans, Job"]
[Result "1/2-1/2"]
[TimeControl "40/90m+30m+30sec/move"]
[WhiteElo "1763"]
[BlackElo "1803"]

1. e4 {[%clk 01:30:57]} {[%emt 00:00:02]} e6 {[%clk 01:30:50]} {[%emt
00:00:10]} 2. d4 {[%clk 01:31:17]} {[%emt 00:00:09]} d5 {[%clk 01:31:16]}
{[%emt 00:00:05]} 3. Nc3 {[%clk 01:31:37]} {[%emt 00:00:09]} Nf6 {[%clk
01:30:59]} {[%emt 00:00:48]} 4. Bg5 {[%clk 01:31:54]} {[%emt 00:00:12]} Be7
{[%clk 01:30:52]} {[%emt 00:00:38]} 5. e5 {[%clk 01:32:13]} {[%emt 00:00:11]}
Nfd7 {[%clk 01:31:14]} {[%emt 00:00:08]} 6. Bxe7 {[%clk 01:32:35]} {[%emt
00:00:09]} Qxe7 {[%clk 01:31:37]} {[%emt 00:00:05]} 7. f4 {[%clk 01:32:59]}
{[%emt 00:00:07]} a6 {[%clk 01:31:33]} {[%emt 00:00:35]} 8. Nf3 {[%clk
01:33:21]} {[%emt 00:00:07]} c5 {[%clk 01:31:47]} {[%emt 00:00:16]} 9. Qd2
{[%clk 01:33:45]} {[%emt 00:00:06]} Nc6 {[%clk 01:28:25]} {[%emt 00:03:53]} 10.
dxc5 {[%clk 01:33:08]} {[%emt 00:01:06]} Nxc5 {[%clk 01:26:49]} {[%emt
00:02:06]} 11. O-O-O {[%clk 01:33:20]} {[%emt 00:00:17]} Bd7 {[%clk 01:25:34]}
{[%emt 00:01:45]} 12. Bd3 {[%clk 01:28:45]} {[%emt 00:05:05]} Rc8 {[%clk
01:14:47]} {[%emt 00:11:18]} 13. Kb1 {[%clk 01:28:16]} {[%emt 00:01:00]} Nxd3
{[%clk 01:00:46]} {[%emt 00:14:30]} 14. cxd3 {[%clk 01:26:23]} {[%emt
00:02:22]} Qb4 {[%clk 00:51:03]} {[%emt 00:10:14]} 15. Rhe1 {[%clk 01:00:03]}
{[%emt 00:26:49]} b5 {[%clk 00:27:49]} {[%emt 00:23:44]} 16. h3 {[%clk
00:37:52]} {[%emt 00:22:42]} Qa5 {[%clk 00:25:54]} {[%emt 00:02:24]} 17. f5
{[%clk 00:28:14]} {[%emt 00:10:09]} b4 {[%clk 00:22:05]} {[%emt 00:04:19]} 18.
Ne2 {[%clk 00:28:08]} {[%emt 00:00:35]} exf5 {[%clk 00:21:23]} {[%emt
00:01:12]} 19. Qg5 {[%clk 00:27:12]} {[%emt 00:01:27]} Kf8 {[%clk 00:18:47]}
{[%emt 00:03:06]} 20. Nf4 {[%clk 00:23:52]} {[%emt 00:03:49]} Be6 {[%clk
00:11:50]} {[%emt 00:07:27]} 21. g4 {[%clk 00:15:50]} {[%emt 00:08:32]} Qd8
{[%clk 00:03:23]} {[%emt 00:08:57]} 22. Qh5 {[%clk 00:08:44]} {[%emt 00:07:16]}
g6 {[%clk 00:01:20]} {[%emt 00:02:53]} 23. Qh6+ {[%clk 00:08:34]} {[%emt
00:00:40]} Kg8 {[%clk 00:01:25]} {[%emt 00:00:25]} 24. Ng5 {[%clk 00:02:24]}
{[%emt 00:06:40]} Qf8 {[%clk 00:01:28]} {[%emt 00:00:27]} 25. Qxf8+ {[%clk
00:02:29]} {[%emt 00:00:26]} Kxf8 {[%clk 00:01:57]} 26. Ngxe6+ {[%clk
00:02:38]} {[%emt 00:00:21]} fxe6 {[%clk 00:02:25]} {[%emt 00:00:02]} 27. Nxe6+
{[%clk 00:02:56]} {[%emt 00:00:12]} Ke7 {[%clk 00:02:38]} {[%emt 00:00:17]} 28.
gxf5 {[%clk 00:03:13]} {[%emt 00:00:13]} gxf5 {[%clk 00:02:53]} {[%emt
00:00:15]} 29. Nf4 {[%clk 00:03:37]} {[%emt 00:00:06]} d4 {[%clk 00:02:28]}
{[%emt 00:00:54]} 30. Rc1 {[%clk 00:03:05]} {[%emt 00:01:02]} Rhg8 {[%clk
00:01:41]} {[%emt 00:01:17]} 31. Nd5+ {[%clk 00:03:11]} {[%emt 00:00:25]} Ke6
{[%clk 00:01:54]} {[%emt 00:00:17]} 32. Nf4+ {[%clk 00:03:34]} {[%emt
00:00:07]} Ke7 {[%clk 00:02:12]} {[%emt 00:00:12]} 33. Rc5 {[%clk 00:03:10]}
{[%emt 00:00:54]} Rg3 {[%clk 00:00:40]} {[%emt 00:02:02]} 34. Nd5+ {[%clk
00:03:01]} {[%emt 00:00:39]} Ke6 {[%clk 00:00:59]} {[%emt 00:00:11]} 35. Nb6
{[%clk 00:03:14]} {[%emt 00:00:17]} Rc7 {[%clk 00:01:15]} {[%emt 00:00:14]} 36.
Rec1 {[%clk 00:03:25]} {[%emt 00:00:19]} Rxd3 {[%clk 00:01:14]} {[%emt
00:00:30]} 37. Rxc6+ {[%clk 00:03:48]} {[%emt 00:00:07]} Rxc6 {[%clk 00:01:40]}
{[%emt 00:00:04]} 38. Rxc6+ {[%clk 00:04:14]} {[%emt 00:00:05]} Kxe5 {[%clk
00:02:03]} {[%emt 00:00:07]} 39. Rh6 {[%clk 00:04:31]} {[%emt 00:00:13]} f4
{[%clk 00:01:00]} {[%emt 00:01:33]} 40. Kc2 {[%clk 00:04:50]} {[%emt 00:00:11]}
Rg3 {[%clk 00:01:22]} {[%emt 00:00:08]} 41. Nc4+ {[%clk 00:05:05]} {[%emt
00:00:15]} Kd5 {[%clk 00:25:13]} {[%emt 00:06:36]} 42. Nd2 {[%clk 00:35:02]}
{[%emt 00:00:34]} d3+ {[%clk 00:24:21]} {[%emt 00:01:23]} 43. Kb3 {[%clk
00:35:07]} {[%emt 00:00:26]} Rg2 {[%clk 00:24:32]} {[%emt 00:00:18]} 44. Nf3
{[%clk 00:31:59]} {[%emt 00:03:38]} Ke4 {[%clk 00:20:22]} {[%emt 00:04:40]} 45.
Nh4 {[%clk 00:31:47]} {[%emt 00:00:42]} Rg3 {[%clk 00:19:44]} {[%emt 00:01:08]}
46. Rxh7 {[%clk 00:31:05]} {[%emt 00:01:11]} f3 {[%clk 00:09:50]} {[%emt
00:10:24]} 47. Re7+ {[%clk 00:23:45]} {[%emt 00:07:51]} Kf4 {[%clk 00:09:33]}
{[%emt 00:00:48]} 48. Rf7+ {[%clk 00:23:39]} {[%emt 00:00:36]} Ke4 {[%emt
00:19:55]} 1/2-1/2

[Event "NJSK 2018 Jeugd B"]
[Site "Assen, Netherlands"]
[Date "2018.05.02"]
[Round "4.7"]
[White "Gevorkjan, Lewon"]
[Black "Cchung, Chi Yun"]
[Result "0-1"]
[TimeControl "40/90m+30m+30sec/move"]
[WhiteElo "1821"]
[BlackElo "1783"]

1. Nf3 {[%clk 01:30:46]} {[%emt 00:00:13]} Nf6 {[%clk 01:30:50]} {[%emt
00:00:10]} 2. e3 {[%clk 01:31:10]} {[%emt 00:00:07]} g6 {[%clk 01:31:05]}
{[%emt 00:00:14]} 3. b3 {[%clk 01:31:06]} {[%emt 00:00:35]} Bg7 {[%clk
01:31:21]} {[%emt 00:00:13]} 4. Bb2 {[%clk 01:31:29]} {[%emt 00:00:07]} O-O
{[%clk 01:31:38]} {[%emt 00:00:13]} 5. Be2 {[%clk 01:31:49]} {[%emt 00:00:10]}
b6 {[%clk 01:31:55]} {[%emt 00:00:13]} 6. O-O {[%clk 01:31:56]} {[%emt
00:00:24]} Bb7 {[%clk 01:32:22]} {[%emt 00:00:03]} 7. c4 {[%clk 01:32:01]}
{[%emt 00:00:25]} d6 {[%clk 01:32:42]} {[%emt 00:00:09]} 8. Nc3 {[%clk
01:31:51]} {[%emt 00:00:40]} Ne4 {[%clk 01:33:07]} {[%emt 00:00:06]} 9. Qc2
{[%clk 01:32:08]} {[%emt 00:00:13]} Nxc3 {[%clk 01:33:29]} {[%emt 00:00:08]} 10.
Bxc3 {[%clk 01:32:31]} {[%emt 00:00:05]} e5 {[%clk 01:33:50]} {[%emt 00:00:10]}
11. d3 {[%clk 01:32:45]} {[%emt 00:00:17]} Nd7 {[%clk 01:33:36]} {[%emt
00:00:44]} 12. Nd2 {[%clk 01:32:49]} {[%emt 00:00:25]} f5 {[%clk 01:33:31]}
{[%emt 00:00:35]} 13. Bf3 {[%clk 01:30:00]} {[%emt 00:03:19]} Bxf3 {[%clk
01:32:53]} {[%emt 00:01:09]} 14. Nxf3 {[%clk 01:30:10]} {[%emt 00:00:19]} g5
{[%clk 01:30:33]} {[%emt 00:02:49]} 15. Nd2 {[%clk 01:27:23]} {[%emt 00:03:19]}
g4 {[%clk 01:20:18]} {[%emt 00:10:44]} 16. Rad1 {[%clk 01:19:57]} {[%emt
00:07:56]} Qh4 {[%clk 00:57:37]} {[%emt 00:23:11]} 17. Kh1 {[%clk 01:15:03]}
{[%emt 00:05:24]} Rf6 {[%clk 00:48:42]} {[%emt 00:09:25]} 18. g3 {[%clk
01:13:14]} {[%emt 00:02:19]} Qh3 {[%clk 00:43:35]} {[%emt 00:05:36]} 19. Rg1
{[%clk 01:12:15]} {[%emt 00:01:31]} Rh6 {[%clk 00:38:34]} {[%emt 00:05:30]} 20.
Rg2 {[%clk 01:12:17]} {[%emt 00:00:29]} Rf8 {[%clk 00:37:49]} {[%emt 00:01:14]}
21. f3 {[%clk 01:08:15]} {[%emt 00:04:32]} Nc5 {[%clk 00:33:29]} {[%emt
00:04:51]} 22. b4 {[%clk 01:06:40]} {[%emt 00:02:05]} Ne6 {[%clk 00:32:59]}
{[%emt 00:00:59]} 23. Rf1 {[%clk 01:05:48]} {[%emt 00:01:22]} f4 {[%clk
00:23:31]} {[%emt 00:09:58]} 24. exf4 {[%clk 00:58:44]} {[%emt 00:07:34]} exf4
{[%clk 00:23:19]} {[%emt 00:00:41]} 25. Bxg7 {[%clk 00:58:46]} {[%emt
00:00:29]} Kxg7 {[%clk 00:22:42]} {[%emt 00:01:07]} 26. Qb2+ {[%clk 00:58:17]}
{[%emt 00:00:59]} Kg8 {[%clk 00:19:01]} {[%emt 00:04:10]} 27. Rff2 {[%clk
00:54:41]} {[%emt 00:04:07]} fxg3 {[%clk 00:16:42]} {[%emt 00:02:49]} 28. Rf1
{[%clk 00:52:02]} {[%emt 00:03:10]} Qxh2 {[%clk 00:13:04]} {[%emt 00:04:07]} 29.
Rxh2 {[%clk 00:51:09]} {[%emt 00:01:23]} Rxh2 {[%clk 00:13:27]} {[%emt
00:00:07]} 30. Kg1 {[%clk 00:51:37]} {[%emt 00:00:03]} Nf4 {[%clk 00:13:45]}
{[%emt 00:00:11]} 31. Rf2 {[%clk 00:49:24]} {[%emt 00:02:43]} Rxf2 {[%clk
00:13:08]} {[%emt 00:01:06]} 0-1

[Event "NJSK 2018 Jeugd B"]
[Site "Assen, Netherlands"]
[Date "2018.05.02"]
[Round "4.8"]
[White "Ypma, Jord"]
[Black "Bruggink, Tycho"]
[Result "1/2-1/2"]
[TimeControl "40/90m+30m+30sec/move"]
[WhiteElo "1737"]
[BlackElo "1899"]

1. d4 {[%clk 01:30:57]} {[%emt 00:00:03]} Nf6 {[%clk 01:30:57]} {[%emt
00:00:03]} 2. Bf4 {[%clk 01:31:09]} {[%emt 00:00:17]} e6 {[%clk 01:28:00]}
{[%emt 00:03:28]} 3. e3 {[%clk 01:31:09]} {[%emt 00:00:30]} b6 {[%clk
01:26:46]} {[%emt 00:01:43]} 4. Nf3 {[%clk 01:31:00]} {[%emt 00:00:39]} Bb7
{[%clk 01:18:44]} {[%emt 00:08:33]} 5. Nbd2 {[%clk 01:30:37]} {[%emt 00:00:53]}
d5 {[%clk 01:16:24]} {[%emt 00:02:50]} 6. Bd3 {[%clk 01:30:17]} {[%emt
00:00:49]} Nbd7 {[%clk 01:15:40]} {[%emt 00:01:15]} 7. O-O {[%clk 01:28:24]}
{[%emt 00:02:22]} Be7 {[%clk 01:15:55]} {[%emt 00:00:16]} 8. Ne5 {[%clk
01:28:22]} {[%emt 00:00:32]} Nxe5 {[%clk 01:16:07]} {[%emt 00:00:18]} 9. Bxe5
{[%clk 01:26:22]} {[%emt 00:02:29]} Bd6 {[%clk 01:16:28]} {[%emt 00:00:10]} 10.
Nf3 {[%clk 01:24:56]} {[%emt 00:01:55]} O-O {[%clk 01:16:05]} {[%emt 00:00:53]}
11. c3 {[%clk 01:22:47]} {[%emt 00:02:39]} Nd7 {[%clk 01:13:12]} {[%emt
00:03:24]} 12. Bf4 {[%clk 01:21:00]} {[%emt 00:02:16]} h6 {[%clk 01:07:11]}
{[%emt 00:06:32]} 13. Qe2 {[%clk 01:18:37]} {[%emt 00:02:52]} Qf6 {[%clk
01:07:13]} {[%emt 00:00:29]} 14. Bxd6 {[%clk 01:17:03]} {[%emt 00:02:04]} cxd6
{[%clk 01:07:40]} {[%emt 00:00:04]} 15. Bb5 {[%clk 01:16:01]} {[%emt 00:01:31]}
Rfd8 {[%clk 01:07:10]} {[%emt 00:01:00]} 16. Rfe1 {[%clk 01:15:01]} {[%emt
00:01:29]} Nf8 {[%clk 01:04:52]} {[%emt 00:02:49]} 17. a4 {[%clk 01:09:14]}
{[%emt 00:06:17]} e5 {[%clk 01:02:32]} {[%emt 00:02:50]} 18. Ba6 {[%clk
01:07:04]} {[%emt 00:02:40]} Bc6 {[%clk 00:56:22]} {[%emt 00:06:40]} 19. Bb5
{[%clk 01:06:28]} {[%emt 00:01:06]} Bb7 {[%clk 00:56:43]} {[%emt 00:00:09]} 20.
Ba6 {[%clk 01:06:12]} {[%emt 00:00:47]} Bc6 {[%clk 00:54:12]} {[%emt 00:03:00]}
21. Bb5 {[%clk 01:06:36]} {[%emt 00:00:06]} Bb7 {[%clk 00:54:37]} {[%emt
00:00:05]} 22. Ba6 {[%emt 00:00:47]} 1/2-1/2

[Event "NJSK 2018 Jeugd B"]
[Site "Assen, Netherlands"]
[Date "2018.05.03"]
[Round "5.1"]
[White "Kouwenhoven, Derk"]
[Black "De Boer, Eelke"]
[Result "0-1"]
[TimeControl "40/90m+30m+30sec/move"]
[WhiteElo "2091"]
[BlackElo "2318"]

1. e4 {[%clk 01:30:57]} {[%emt 00:00:01]} c5 {[%clk 01:28:26]} {[%emt
00:02:35]} 2. Nf3 {[%clk 01:31:20]} {[%emt 00:00:08]} d6 {[%clk 01:28:50]}
{[%emt 00:00:05]} 3. d4 {[%clk 01:31:40]} {[%emt 00:00:09]} cxd4 {[%clk
01:29:13]} {[%emt 00:00:08]} 4. Nxd4 {[%clk 01:32:00]} {[%emt 00:00:10]} Nf6
{[%clk 01:29:36]} {[%emt 00:00:07]} 5. Nc3 {[%clk 01:32:23]} {[%emt 00:00:06]}
a6 {[%clk 01:30:02]} {[%emt 00:00:05]} 6. Bg5 {[%clk 01:32:46]} {[%emt
00:00:07]} Nbd7 {[%clk 01:30:25]} {[%emt 00:00:07]} 7. Qe2 {[%clk 01:33:02]}
{[%emt 00:00:13]} h6 {[%clk 01:30:48]} {[%emt 00:00:08]} 8. Bh4 {[%clk
01:33:24]} {[%emt 00:00:07]} g6 {[%clk 01:31:09]} {[%emt 00:00:09]} 9. f4
{[%clk 01:33:39]} {[%emt 00:00:16]} e5 {[%clk 01:31:33]} {[%emt 00:00:06]} 10.
fxe5 {[%clk 01:33:46]} {[%emt 00:00:23]} dxe5 {[%clk 01:31:56]} {[%emt
00:00:07]} 11. O-O-O {[%clk 01:34:02]} {[%emt 00:00:13]} Qc7 {[%clk 01:32:19]}
{[%emt 00:00:07]} 12. Nb3 {[%clk 01:34:25]} {[%emt 00:00:08]} b5 {[%clk
01:32:42]} {[%emt 00:00:07]} 13. Qf3 {[%clk 01:34:46]} {[%emt 00:00:08]} Bg7
{[%clk 01:33:05]} {[%emt 00:00:08]} 14. a3 {[%clk 01:35:11]} {[%emt 00:00:05]}
Bb7 {[%clk 01:33:06]} {[%emt 00:00:30]} 15. Kb1 {[%clk 01:35:33]} {[%emt
00:00:07]} O-O {[%clk 01:26:49]} {[%emt 00:06:47]} 16. g4 {[%clk 01:34:22]}
{[%emt 00:01:42]} Rac8 {[%clk 01:21:01]} {[%emt 00:06:17]} 17. Be2 {[%clk
01:32:34]} {[%emt 00:02:18]} Nxe4 {[%clk 01:15:07]} {[%emt 00:06:24]} 18. Nd5
{[%clk 01:24:02]} {[%emt 00:09:02]} Qxc2+ {[%clk 01:13:29]} {[%emt 00:02:08]}
19. Ka1 {[%clk 01:24:04]} {[%emt 00:00:28]} Bxd5 {[%clk 01:12:49]} {[%emt
00:01:10]} 20. Rxd5 {[%clk 01:24:30]} {[%emt 00:00:04]} Nec5 {[%clk 01:12:38]}
{[%emt 00:00:40]} 21. Nxc5 {[%clk 01:10:23]} {[%emt 00:14:38]} Nxc5 {[%clk
01:13:00]} {[%emt 00:00:08]} 22. Bd1 {[%clk 01:10:20]} {[%emt 00:00:33]} Qc1+
{[%clk 01:11:56]} {[%emt 00:01:33]} 23. Ka2 {[%clk 01:10:45]} {[%emt 00:00:06]}
e4 {[%clk 01:12:15]} {[%emt 00:00:11]} 24. Qg2 {[%clk 01:10:40]} {[%emt
00:00:35]} Qc4+ {[%clk 01:12:32]} {[%emt 00:00:12]} 0-1

[Event "NJSK 2018 Jeugd B"]
[Site "Assen, Netherlands"]
[Date "2018.05.03"]
[Round "5.2"]
[White "Tang, Charlie"]
[Black "Hilwerda, Jonas"]
[Result "0-1"]
[TimeControl "40/90m+30m+30sec/move"]
[WhiteElo "2127"]
[BlackElo "2108"]

1. e4 {[%clk 01:30:52]} {[%emt 00:00:07]} e5 {[%clk 01:30:55]} {[%emt
00:00:05]} 2. Nf3 {[%clk 01:31:10]} {[%emt 00:00:11]} Nc6 {[%clk 01:31:24]}
{[%emt 00:00:02]} 3. Bb5 {[%clk 01:31:23]} {[%emt 00:00:17]} a6 {[%clk
01:31:50]} {[%emt 00:00:04]} 4. Ba4 {[%clk 01:31:41]} {[%emt 00:00:11]} Nf6
{[%clk 01:32:18]} {[%emt 00:00:02]} 5. O-O {[%clk 01:31:57]} {[%emt 00:00:15]}
Be7 {[%clk 01:32:45]} {[%emt 00:00:02]} 6. Re1 {[%clk 01:32:19]} {[%emt
00:00:08]} b5 {[%clk 01:33:10]} {[%emt 00:00:05]} 7. Bb3 {[%clk 01:32:44]}
{[%emt 00:00:05]} d6 {[%clk 01:33:20]} {[%emt 00:00:20]} 8. c3 {[%clk
01:33:06]} {[%emt 00:00:08]} O-O {[%clk 01:33:41]} {[%emt 00:00:08]} 9. h3
{[%emt 00:00:40]} Na5 {[%clk 01:33:28]} {[%emt 00:00:13]} 10. Bc2 {[%clk
01:33:45]} {[%emt 00:00:12]} c5 {[%clk 01:33:38]} {[%emt 00:00:20]} 11. d4
{[%clk 01:33:51]} {[%emt 00:00:24]} Qc7 {[%clk 01:33:59]} {[%emt 00:00:09]} 12.
Nbd2 {[%clk 01:33:34]} {[%emt 00:00:47]} cxd4 {[%clk 01:34:17]} {[%emt
00:00:12]} 13. cxd4 {[%clk 01:33:50]} {[%emt 00:00:14]} Nc6 {[%clk 01:34:25]}
{[%emt 00:00:22]} 14. Nb3 {[%clk 01:33:24]} {[%emt 00:00:57]} a5 {[%clk
01:33:58]} {[%emt 00:00:56]} 15. Be3 {[%clk 01:33:29]} {[%emt 00:00:25]} a4
{[%clk 01:30:43]} {[%emt 00:03:45]} 16. Nbd2 {[%clk 01:31:02]} {[%emt
00:02:57]} Nb4 {[%clk 01:27:35]} {[%emt 00:03:37]} 17. Bb1 {[%clk 01:29:37]}
{[%emt 00:01:56]} Bd7 {[%clk 01:25:56]} {[%emt 00:02:09]} 18. Nf1 {[%clk
01:21:39]} {[%emt 00:08:28]} Rac8 {[%clk 01:19:41]} {[%emt 00:06:44]} 19. Qd2
{[%clk 01:09:21]} {[%emt 00:12:49]} Na6 {[%clk 01:18:00]} {[%emt 00:02:10]} 20.
Bd3 {[%clk 00:53:03]} {[%emt 00:16:49]} Qb7 {[%clk 00:52:50]} {[%emt 00:25:39]}
21. d5 {[%clk 00:38:29]} {[%emt 00:15:04]} Nc5 {[%clk 00:49:58]} {[%emt
00:03:19]} 22. Ng3 {[%clk 00:38:02]} {[%emt 00:01:01]} Nxd3 {[%clk 00:48:25]}
{[%emt 00:02:03]} 23. Qxd3 {[%clk 00:38:26]} {[%emt 00:00:06]} Nxe4 {[%clk
00:40:58]} {[%emt 00:07:56]} 24. Nxe4 {[%clk 00:34:58]} {[%emt 00:03:59]} f5
{[%clk 00:40:45]} {[%emt 00:00:42]} 25. Ned2 {[%clk 00:34:17]} {[%emt
00:01:11]} f4 {[%clk 00:35:15]} {[%emt 00:06:00]} 26. Bd4 {[%clk 00:33:14]}
{[%emt 00:01:34]} Bf5 {[%clk 00:35:05]} {[%emt 00:00:39]} 27. Qe2 {[%clk
00:33:18]} {[%emt 00:00:26]} Bf6 {[%clk 00:34:13]} {[%emt 00:01:22]} 28. Ne4
{[%clk 00:18:52]} {[%emt 00:14:57]} Bxe4 {[%clk 00:25:13]} {[%emt 00:09:29]} 29.
Qxe4 {[%clk 00:19:16]} {[%emt 00:00:06]} exd4 {[%clk 00:25:37]} {[%emt
00:00:06]} 30. Nxd4 {[%clk 00:19:14]} {[%emt 00:00:32]} Rfe8 {[%clk 00:23:06]}
{[%emt 00:03:01]} 31. Ne6 {[%clk 00:18:11]} {[%emt 00:01:33]} Bxb2 {[%clk
00:22:15]} {[%emt 00:01:21]} 32. Rab1 {[%clk 00:17:07]} {[%emt 00:01:34]} a3
{[%clk 00:22:00]} {[%emt 00:00:46]} 33. Qd3 {[%clk 00:12:27]} {[%emt 00:05:10]}
b4 {[%clk 00:18:34]} {[%emt 00:03:56]} 34. Nxf4 {[%clk 00:11:16]} {[%emt
00:01:40]} b3 {[%clk 00:17:49]} {[%emt 00:01:16]} 35. Ne6 {[%clk 00:05:12]}
{[%emt 00:06:34]} bxa2 {[%clk 00:16:43]} {[%emt 00:01:36]} 36. Rbd1 {[%clk
00:05:27]} {[%emt 00:00:14]} a1=Q {[%clk 00:11:39]} {[%emt 00:05:35]} 37. Rxa1
{[%clk 00:05:54]} {[%emt 00:00:03]} Bxa1 {[%clk 00:12:05]} {[%emt 00:00:04]} 38.
Rxa1 {[%clk 00:06:16]} {[%emt 00:00:07]} Ra8 {[%clk 00:11:24]} {[%emt
00:01:11]} 39. Ng5 {[%clk 00:05:16]} {[%emt 00:01:30]} g6 {[%clk 00:09:56]}
{[%emt 00:01:58]} 40. Rxa3 {[%clk 00:04:34]} {[%emt 00:01:12]} Rxa3 {[%clk
00:07:31]} {[%emt 00:02:55]} 41. Qxa3 {[%clk 00:05:00]} {[%emt 00:00:04]} Qxd5
{[%clk 00:07:35]} {[%emt 00:00:26]} 42. h4 {[%clk 00:01:24]} {[%emt 00:04:05]}
Re1+ {[%clk 00:00:43]} {[%emt 00:07:22]} 43. Kh2 {[%clk 00:30:16]} {[%emt
00:01:39]} Qe5 {[%clk 00:31:00]} {[%emt 00:00:13]} 0-1